Cogmind - Beta 16.1 @@@ ROGUE MODE // 2026.04.16 @ 10:13:16 Player: OniAn Result: Destroyed by H-61 Shepherd with Heavy Assault Cannon Performance ------------- Evolutions (2) 1000 Regions Visited (5) 1000 Robots Destroyed (78) 390 Value Destroyed (1569) 1569 Prototype IDs (3) 60 Alien Tech Used (0) 0 Bonus (64) 64 TOTAL SCORE: 4083 Bonus ------- High Alert Combat Kills 64 Cogmind --------- Core Integrity 0/550 Matter 19/300 Energy 100/100 System Corruption 0% Temperature Cool (0) Movement Core (50) Location -8/Materials Parts ------- > --- POWER (2) -------- (None) > --- PROPULSION (3) --- (None) > --- UTILITY (4) ------ Machine Analyzer > --- WEAPON (2) ------- (None) > --- INVENTORY (5) ---- Light Treads Recalibrator Assault Cannon Rocket Launcher Rocket Launcher Peak State ------------ > --- POWER ------------ Heavy Ion Engine Light Deuterium Engine > --- PROPULSION ------- Light Treads Light Treads Improved Treads > --- UTILITY ---------- Heat Sink Small Storage Unit Machine Analyzer Hardened Medium Armor Plating > --- WEAPON ----------- Assault Cannon Assault Cannon > --- INVENTORY -------- Light Treads Hacking Suite Recalibrator Gauss Rifle Assault Cannon Assault Cannon Rocket Launcher Rocket Launcher [Rating: 26] Favorites ----------- Power Heavy Ion Engine Engine Heavy Ion Engine Propulsion Improved Treads Treads Improved Treads Utility Small Storage Unit Device Heat Sink Storage Small Storage Unit Processor Machine Analyzer Protection Light Armor Plating Weapon Small Laser Energy Gun Small Laser Energy Cannon Particle Cannon Ballistic Gun Gauss Rifle Ballistic Cannon Assault Cannon Launcher Grenade Launcher Build | -11 -10 -10 -9 -9 -8 ------- Run | Yrd Mat Min Mat Min Mat Slots Evolved 4 | . . . 2 . 2 Power 1 | . . . . . 1 Propulsion 1 | . . . . . 1 Utility 2 | . . . 2 . . Weapon . | . . . . . . Parts Attached 39 | 6 . . 27 . 6 Power 7 | 1 . . 5 . 1 Engine 7 | 1 . . 5 . 1 Core . | . . . . . . Reactor . | . . . . . . Propulsion 8 | 2 . . 5 . 1 Treads 8 | 2 . . 5 . 1 Leg . | . . . . . . Wheel . | . . . . . . Hover . | . . . . . . Flight . | . . . . . . Utility 10 | 1 . . 8 . 1 Device 2 | . . . 2 . . Storage 1 | 1 . . . . . Processor 2 | . . . 2 . . Hackware . | . . . . . . Protection 5 | . . . 4 . 1 Artifact . | . . . . . . Weapon 14 | 2 . . 9 . 3 Energy Gun 7 | 2 . . 5 . . Energy Cannon 2 | . . . 1 . 1 Ballistic Gun 1 | . . . . . 1 Ballistic Cannon 3 | . . . 2 . 1 Launcher 1 | . . . 1 . . Special Weapon . | . . . . . . Impact Weapon . | . . . . . . Slashing Weapon . | . . . . . . Piercing Weapon . | . . . . . . Special Melee Weapon . | . . . . . . Unidentified Prototypes 1 | . . . 1 . . Parts Lost 18 | . . . 7 . 11 Power 3 | . . . 1 . 2 Propulsion 4 | . . . 2 . 2 Utility 5 | . . . 2 . 3 Weapon 6 | . . . 2 . 4 Highest Loss Streak 9 | . . . 2 . 9 To Critical Strikes . | . . . . . . Average Backups 6 | . 1 7 7 8 7 Power . | . . . . . . Propulsion 2 | . 1 5 2 2 1 Utility . | . . . . 2 2 Weapon 3 | . . 2 4 4 4 Tool/Special . | . . . . . . Unused Backups 15 | . 1 . 7 . 7 Power . | . . . . . . Propulsion 4 | . . . 3 . 1 Utility 2 | . . . . . 2 Weapon 9 | . 1 . 4 . 4 Tool/Special . | . . . . . . Average Slot Usage (%) 90 | . 85 85 93 100 78 Engine 10 | . 14 14 10 11 9 Treads 21 | . 28 28 21 22 17 Device 10 | . . . 12 11 8 Storage 10 | . 14 14 11 11 9 Processor 5 | . . . 5 11 9 Protection 8 | . . . 10 11 8 Energy Gun 11 | . 28 28 11 . . Energy Cannon 3 | . . . 5 . . Ballistic Cannon 5 | . . . 2 22 16 Peak Build Rating 26 | 6 6 6 19 19 26 Average Rating 14 | 4 6 6 14 19 20 On Entrance 9 | . 6 6 6 19 19 Avg Prop Armor Cover (%) . | . . . . . . Naked Turns . | . . . . . . Heaviest Build 37 | 13 13 13 27 27 37 Greatest Support 63 | 40 40 40 46 43 63 Greatest Overweight (x) 8 | . . . . . 8 Average Overweight (x) . | . . . . . . Largest Inventory Capacity 8 | 8 8 8 8 8 8 Average Capacity 7 | 6 8 8 8 8 8 Most Carried 8 | . 7 7 8 8 8 Average Carried 7 | . 2 7 7 8 7 Final Capacity 8 | 8 8 8 8 8 5 Final Carried 8 | . 7 7 8 8 5 Class Distribution -------------------- 56% | Scavenger-Mutant 43% | Mutant Dominant Class ---------------- Mutant | -10/Materials Mutant | -10/Mines Scavenger-Mutant | -9/Materials Scavenger-Mutant | -9/Mines Mutant | -8/Materials Resources | -11 -10 -10 -9 -9 -8 ----------- Run | Yrd Mat Min Mat Min Mat Matter Collected 1081 | 221 39 . 605 . 216 Remotely . | . . . . . . Salvage Created 1899 | . 91 . 1423 . 385 Parts 143 | . 9 . 110 . 24 Haulers Intercepted . | . . . . . . Recyclers Shooed . | . . . . . . Parts Field Recycled . | . . . . . . Retrieved Matter . | . . . . . . Parts Self-Destructed . | . . . . . . Prevented . | . . . . . . Parts Restored . | . . . . . . Kills | -11 -10 -10 -9 -9 -8 ------- Run | Yrd Mat Min Mat Min Mat Combat Hostiles Destroyed 52 | . 4 . 39 . 9 Guns 17 | . 4 . 11 . 2 Cannons 15 | . . . 8 . 7 AOE 19 | . . . 19 . . Classes Destroyed 10 | . 3 . 6 . 1 Worker 3 | . 1 . 1 . 1 Builder 6 | . . . 6 . . Recycler 7 | . . . 3 . 4 Mechanic 2 | . . . 2 . . Operator 1 | . . . 1 . . Watcher 7 | . . . 5 . 2 Swarmer 27 | . 3 . 18 . 6 Grunt 15 | . 1 . 12 . 2 Sentry 9 | . . . 9 . . Hunter 1 | . . . . . 1 Best Kill Streak 9 | . 3 . 8 . 9 Combat Bots Only 6 | . 3 . 6 . 5 Max Kills in Single Turn 3 | . 1 . 3 . 2 Gunslinging . | . . . . . . Exploded 3 | . . . 3 . . Melee . | . . . . . . Uniques/NPCs Destroyed . | . . . . . . Combat | -11 -10 -10 -9 -9 -8 -------- Run | Yrd Mat Min Mat Min Mat Hostile Shots Fired 337 | . 22 . 161 . 154 Missed 105 | . 7 . 52 . 46 Hits 232 | . 15 . 109 . 108 Projectile 232 | . 15 . 109 . 108 Critical Strikes 7 | . . . 1 . 6 Damage Taken 3362 | . 118 . 1316 . 1928 Core 784 | . 15 . 197 . 572 Absorbed by Shields . | . . . . . . Regen/Repaired (Parts) 88 | . . . 88 . . Core Remaining (%) 81 | 100 . 94 . 50 . Volleys Fired 184 | . 15 . 110 . 59 Largest 2 | . 2 . 2 . 2 Hottest 108 | . 90 . 108 . 97 Shots Fired 309 | . 29 . 185 . 95 Gun 132 | . 29 . 95 . 8 Cannon 151 | . . . 64 . 87 Launcher 26 | . . . 26 . . Special . | . . . . . . Kinetic 112 | . . . 18 . 94 Thermal 137 | . 29 . 108 . . Explosive 26 | . . . 26 . . Electromagnetic 34 | . . . 33 . 1 Robot Hit Streak 14 | . 5 . 14 . 9 Robot Miss Streak 4 | . 3 . 2 . 4 Penetration Max . | . . . . . . Secondary Targets 2 | . 1 . 1 . . Max Gunslinging Chain 1 | . 1 . 1 . . Shots Hit Robots 203 | . 17 . 128 . 58 Core Hits 114 | . 7 . 87 . 20 Critical Kills . | . . . . . . Critical Parts Destroyed . | . . . . . . Critical Strikes 4 | . 2 . . . 2 Burn 2 | . 2 . . . . Blast 2 | . . . . . 2 Melee Attacks . | . . . . . . Impact . | . . . . . . Slashing . | . . . . . . Piercing . | . . . . . . Sneak Attacks . | . . . . . . Combat Hostiles . | . . . . . . Follow-up Attacks . | . . . . . . Damage Inflicted 5246 | . 201 . 3511 . 1534 Guns 1191 | . 201 . 915 . 75 Cannons 2394 | . . . 935 . 1459 Explosions 1661 | . . . 1661 . . Melee . | . . . . . . Ramming . | . . . . . . Kinetic 1771 | . . . 237 . 1534 Thermal 1548 | . 201 . 1347 . . Explosive 1558 | . . . 1558 . . Electromagnetic 369 | . . . 369 . . Impact . | . . . . . . Slashing . | . . . . . . Piercing . | . . . . . . Highest Corruption . | . . . . . . Average Corruption . | . . . . . . Corruption Purged . | . . . . . . Corruption Blocked . | . . . . . . Overload Shots . | . . . . . . Overflow Damage 94 | . . . 62 . 32 Projectiles 55 | . . . 23 . 32 Explosions 39 | . . . 39 . . Melee . | . . . . . . Knockbacks 17 | . . . 4 . 13 Impact . | . . . . . . Kinetic 17 | . . . 4 . 13 Secondary . | . . . . . . Self-Inflicted Damage 45 | . . . 45 . . Shots 2 | . . . 2 . . Rammed . | . . . . . . Targets Rammed . | . . . . . . Kicked . | . . . . . . Crushed . | . . . . . . Highest Temperature 261 | . 240 . 261 . 19 Average Temperature 54 | . 87 . 48 . 7 Received Heat Transfer 879 | . 12 . 336 . 531 Siege Activations . | . . . . . . Martial Activations . | . . . . . . Shielding Activations . | . . . . . . Robots Disrupted . | . . . . . . Combat Hostiles . | . . . . . . Robots Corrupted . | . . . . . . Combat Hostiles . | . . . . . . Parts Fried . | . . . . . . Impact Corruptions . | . . . . . . Robots Melted 1 | . . . 1 . . Combat Hostiles 1 | . . . 1 . . Parts Melted 5 | . 1 . 4 . . Heat Transferred 3287 | . 681 . 2606 . . Parts Sabotaged . | . . . . . . Parts Stolen . | . . . . . . Parts Stripped . | . . . . . . Power Chain Reactions 2 | . . . 2 . . Alert | -11 -10 -10 -9 -9 -8 ------- Run | Yrd Mat Min Mat Min Mat Maximum Alert Level 2 | . . . 2 . . Low Security (%) 61 | 100 100 100 44 100 100 Level 1 24 | . . . 34 . . Level 2 13 | . . . 20 . . Level 3 . | . . . . . . Level 4 . | . . . . . . Level 5 . | . . . . . . High Security . | . . . . . . Max Security . | . . . . . . Peak Influence 527 | . 70 . 527 92 131 Initial 92 | . . . . 92 27 Average 171 | . 23 . 232 85 47 Influence Increases 1688 | . 110 . 1268 . 310 Destroy 0b10 Robot/C 1040 | . 80 . 780 . 180 Destroy 0b10 Robot/NC 130 | . 5 . 90 . 35 Destroy Leader 254 | . 20 . 200 . 34 Successful Hack 58 | . 5 . 34 . 19 Disable Machine 45 | . . . 30 . 15 Destroy Structure 116 | . . . 104 . 12 Lose Combat Pursuer 45 | . . . 30 . 15 Influence Decreases 1665 | . 110 . 1030 166 359 Entered New Map 191 | . . . . 146 45 Time Decay 922 | . 110 . 598 20 194 Lost Part 170 | . . . 60 . 110 Lost Ally 10 | . . . . . 10 Purge Threat 372 | . . . 372 . . Squads Dispatched 8 | . 2 . 3 . 3 Investigation 3 | . 1 . 2 . . Extermination . | . . . . . . Reinforcement 5 | . 1 . 1 . 3 Assault . | . . . . . . Garrison . | . . . . . . Intercept . | . . . . . . Searches Triggered . | . . . . . . Construction Impeded . | . . . . . . Haulers Reinforced . | . . . . . . Active Scanning Responses . | . . . . . . Cargo Convoy Interrupts . | . . . . . . Stealth | -11 -10 -10 -9 -9 -8 --------- Run | Yrd Mat Min Mat Min Mat Distress Signals 10 | . . . 6 . 4 Communications Jammed . | . . . . . . Distress Signals . | . . . . . . Times Spotted 73 | . 6 . 49 . 18 Peak Tracking Total 6 | . 3 . 6 . 6 Tactical Retreats 2 | . . . 1 . 1 Traps | -11 -10 -10 -9 -9 -8 ------- Run | Yrd Mat Min Mat Min Mat Traps Triggered 3 | . . . 2 . 1 Indirectly . | . . . . . . Trap Hack Attempts . | . . . . . . Triggered . | . . . . . . Disarmed . | . . . . . . Reprogrammed . | . . . . . . Reused . | . . . . . . Traps Extracted . | . . . . . . Installed . | . . . . . . Triggered . | . . . . . . Machines | -11 -10 -10 -9 -9 -8 ---------- Run | Yrd Mat Min Mat Min Mat Machines Disabled 3 | . . . 2 . 1 Max in Single Turn 1 | . . . 1 . 1 Machines Repaired . | . . . . . . Machines Dismantled . | . . . . . . Machines Sabotaged . | . . . . . . Overloaded Fab Kills . | . . . . . . Hacking | -11 -10 -10 -9 -9 -8 --------- Run | Yrd Mat Min Mat Min Mat Machines Accessed 18 | . 2 . 12 . 4 Terminals 15 | . 2 . 10 . 3 Fabricators . | . . . . . . Repair Stations 1 | . . . 1 . . Recycling Units 1 | . . . . . 1 Scanalyzers 1 | . . . 1 . . Garrison Access . | . . . . . . Total Hacks 63 | . 4 . 47 . 12 Successful 39 | . 1 . 32 . 6 Failed 24 | . 3 . 15 . 6 Catastrophic 3 | . 2 . 1 . . Database Lockouts . | . . . . . . Manual 25 | . 1 . 16 . 8 Terminals 52 | . 4 . 38 . 10 Fabricators . | . . . . . . Repair Stations 2 | . . . 2 . . Recycling Units 2 | . . . . . 2 Scanalyzers 7 | . . . 7 . . Garrison Access . | . . . . . . Terminal Hacks 17 | . 1 . 13 . 3 Robot Analysis 1 | . 1 . . . . Prototype ID Bank 1 | . . . 1 . . Level Access Points 1 | . . . . . 1 Terminal Index 2 | . . . 1 . 1 Repair Station Index 1 | . . . . . 1 Alert Level 4 | . . . 4 . . Unreport Threat 3 | . . . 3 . . Dispatch Records 1 | . . . 1 . . Patrol Status 1 | . . . 1 . . Hauler Manifests 1 | . . . 1 . . Zone Layout 1 | . . . 1 . . Fabricator Hacks . | . . . . . . Repair Station Hacks 2 | . . . 2 . . Scan Component 1 | . . . 1 . . Repair 1 | . . . 1 . . Recycling Unit Hacks . | . . . . . . Scanalyzer 6 | . . . 6 . . Retrieve Study 6 | . . . 6 . . Garrison Access Hacks . | . . . . . . Unauthorized Hacks 14 | . . . 11 . 3 Terminals 14 | . . . 11 . 3 Assimilate 2 | . . . 1 . 1 Botnet 10 | . . . 9 . 1 Operators 2 | . . . 1 . 1 Fabricators . | . . . . . . Repair Stations . | . . . . . . Recycling Units . | . . . . . . Scanalyzers . | . . . . . . Garrison Access . | . . . . . . Data Cores Recovered . | . . . . . . Used . | . . . . . . Hacking Detections 17 | . 2 . 11 . 4 Full Trace Events 2 | . 1 . 1 . . Feedback Events . | . . . . . . Feedback Blocked . | . . . . . . Robot Schematics Acquired . | . . . . . . Robots Built . | . . . . . . Authchips . | . . . . . . Time . | . . . . . . Total Robot Build Rating . | . . . . . . Part Schematics Acquired . | . . . . . . Parts Built . | . . . . . . Authchips . | . . . . . . Time . | . . . . . . Total Part Build Rating . | . . . . . . Part Studies Acquired 6 | . . . 6 . . Parts Repaired 1 | . . . 1 . . Time 26 | . . . 26 . . Parts Recycled . | . . . . . . Recycled Matter . | . . . . . . Retrieved Matter . | . . . . . . Retrieved Components . | . . . . . . Parts Scanalyzed . | . . . . . . Part Schematics Acquired . | . . . . . . Parts Damaged . | . . . . . . Bothacking | -11 -10 -10 -9 -9 -8 ------------ Run | Yrd Mat Min Mat Min Mat Used RIF Installer . | . . . . . . Robots Hacked . | . . . . . . Non-combat . | . . . . . . Combat . | . . . . . . Robot Hacks Applied . | . . . . . . Relay Couplers Released . | . . . . . . Fabnet Peak Effective % . | . . . . . . Robots Rewired . | . . . . . . Allies Hacked . | . . . . . . Hacks Repelled . | . . . . . . Allies | -11 -10 -10 -9 -9 -8 -------- Run | Yrd Mat Min Mat Min Mat Total Allies 2 | . . . 1 1 . Largest Group 2 | . . . 1 2 2 Highest-Rated Group 41 | . . . 10 41 41 Highest-Rated Ally 31 | . . . 10 31 31 Total Orders . | . . . . . . Ally Attacks 1 | . . . . . 1 Total Damage 22 | . . . . . 22 Kills . | . . . . . . Allies Corrupted . | . . . . . . Allies Melted . | . . . . . . Intel | -11 -10 -10 -9 -9 -8 ------- Run | Yrd Mat Min Mat Min Mat Active Infowar (turns) 2350 | . . . 1581 42 727 Sensors 437 | . . . 437 . . Machine Analysis 1913 | . . . 1144 42 727 Robot Analysis Total 1 | . 1 . . . . Derelict Logs Recovered . | . . . . . . Drone Launches . | . . . . . . Drone Recoveries . | . . . . . . Exploration | -11 -10 -10 -9 -9 -8 ------------- Run | Yrd Mat Min Mat Min Mat Turns Passed 4225 | 117 339 76 2924 42 727 Spaces Moved 2181 | 73 180 43 1515 25 345 Core 16 | 7 . . . . 9 Treads 2165 | 66 180 43 1515 25 336 Legs . | . . . . . . Wheels . | . . . . . . Hover . | . . . . . . Flight . | . . . . . . Fastest Speed 50 | 50 160 160 160 160 100 Average Speed 159 | 149 160 160 160 160 161 Slowest Speed 450 | 160 160 160 160 160 450 Overloaded Moves . | . . . . . . Propulsion Burnouts . | . . . . . . Robots Hopped . | . . . . . . Potential Cave-ins . | . . . . . . Cave-ins Triggered . | . . . . . . Exploration Rate (%) 30 | 6 30 12 93 10 31 Regions Visited 5 Branch Regions 2 Pre-discovered Areas . | . . . . . . Known Exits Taken . | . . . . . . Unknown Exits Taken 5 | 1 1 1 1 1 . Scrap Searched . | . . . . . . Spaces Dug 1 | . . . 1 . . Terrain Destroyed 138 | . . . 127 . 11 Melee . | . . . . . . Projectile 17 | . . . 6 . 11 AOE 121 | . . . 121 . . Terrain Rammed . | . . . . . . Walls Destroyed . | . . . . . . Machines Disabled . | . . . . . . Actions | -11 -10 -10 -9 -9 -8 --------- Run | Yrd Mat Min Mat Min Mat Total 2614 | 78 203 50 1838 27 418 Wait 158 | . . 8 145 3 2 Move 2176 | 72 179 42 1514 24 345 Hop . | . . . . . . Pick Up 24 | . 8 . 14 . 2 Fast Attach 22 | 6 . . 13 . 3 Attach 8 | . . . 5 . 3 Detach 3 | . . . 3 . . Swap 13 | . . . 11 . 2 Drop 26 | . 1 . 23 . 2 Fire 184 | . 15 . 110 . 59 Melee . | . . . . . . Ram . | . . . . . . Kick . | . . . . . . Crush . | . . . . . . Escape Stasis . | . . . . . . Rewire . | . . . . . . Trap . | . . . . . . Miscellaneous . | . . . . . . Route ------- -11/Scrapyard -10/Materials -10/Mines -9/Materials (discovered 6 exits: *Mat x3 / [*Min x2] / [*Sto]) -9/Mines -8/Materials (discovered 3 exits: *Fac x3) History --------- Turn | Location | Event 18 | -11/Scrapyard | Discovered new exit (range 16) 118 | -11/Scrapyard | Entered Materials 309 | -10/Materials | Build established: Mutant 372 | -10/Materials | Discovered new exit (range 13) 457 | -10/Materials | Entered Mines 513 | -10/Mines | Discovered new exit (range 10) 533 | -10/Mines | Entered Materials 533 | -9/Materials | Evolved 2 slots: Utility x2 973 | -9/Materials | Build established: Scavenger-Mutant 1404 | -9/Materials | Discovered new exit (range 5) 1640 | -9/Materials | Discovered new exit (range 13) 1640 | -9/Materials | Discovered new exit (range 17) 2016 | -9/Materials | Repaired Lgt. Armor Plating 2041 | -9/Materials | Discovered new exit (range 8) 2176 | -9/Materials | Build established: Mutant 2619 | -9/Materials | Build established: Scavenger-Mutant 2853 | -9/Materials | Discovered new exit (range 14) 2999 | -9/Materials | Discovered new exit (range 6) 3457 | -9/Materials | Entered Mines 3457 | -9/Mines | Accompanied by 1 ally 3460 | -9/Mines | Received a Mining Laser from a helpful Derelict 3472 | -9/Mines | Discovered new exit (range 11) 3499 | -9/Mines | Entered Materials 3499 | -8/Materials | Accompanied by 2 allies 3499 | -8/Materials | Evolved 2 slots: Power x1, Propulsion x1 3771 | -8/Materials | Identified exit to Factory 4005 | -8/Materials | Build established: Mutant 4178 | -8/Materials | Core integrity fell below 50% 4213 | -8/Materials | Lost 9 parts (2p2n2u3w) 4216 | -8/Materials | Core integrity fell below 20% 4226 | -8/Materials | Destroyed by H-61 Shepherd with Heavy Assault Cannon Last Messages --------------- 04185_ Acquired 45 matter. 04187_ Acquired 4 matter. 04192_ Slug penetrates Wall. 04194_ The unstable cave ceiling collapses. 04194_ 5 Matter crushed. 04197_ G-47 Trooper knocked back. 04199_ Destroyed Lgt. Nuclear Core. 04200_ Knocked back. 04201_ G-47 Trooper destroyed. 04202_ R-06 Scavenger collects Lgt. Ion Engine. 04205_ R-06 Scavenger collects Aluminum Leg. 04209_ R-06 Scavenger collects Lgt. Assault Rifle. 04215_ Knocked back. 04223_ K-01 Serf collects debris. 04223_ Acquired 8 matter. 04226_ Penetrated by Slug. 04226_ Assault Cannon destroyed. 04226_ Sml. Storage Unit destroyed. 04226_ Critical hit (Blast). Map ----- +----------------------------------------------------+ | #? ] ! ##########??????????????????? | | """ #? ? # ???????????????????? | | """ ## """"" ?+ ????????????????????? | | """ ##! """""??# ??????????????????????? | | ## ?"" ""? # #???????????????????????? | | %%!############# #???????????????????????? | | % %%*=! %% #???????????????????????? | | % % % = ^ #??????#????????????????? | | % = #???? #????????????????? | | % #?? #????????????????? | | #+### ^ " # #????????????????? | | ###+#######% """ + #????????????????? | | #???? #??# """ # #????????????????? | | #???"""#??# """ #?? #????????????????? | | " #???"""???# "" #???? #????????????????? | | Y" #???"""???# """ #??????#????????????????? | | "" #?????????# "" #???????????????????????? | | #####???"""???# ^ """ #???????????????????????? | | ????????"""???# " #???????????????????????? | | ????????"""???# #???????????????????????? | | ??????????????# #???????????????????????? | | ????????"""???# % % #####???????????????????? | | ????????"""???# %!!!%% //##??????????????????? | | ????????"""???# !!! % %//;##?????????????????? | | ??????????????# % !!!%H ]]; #?????????????????? | | ????????????####/##### !@ ]]# #?????????????????? | | ????????????#% ## g !!# #?????????????????? | | ????????????# """ ## %!==!!#???????????????????? | | ????????????# """ ## k#####???????????????????? | | ???????????## """ ## #???????????????????????? | | ????"""????#" = ##[ #???????????????????????? | | ????"""????## """ ##%= #???????????????????????? | | ????"""????#"% """ ##* #???????????????????????? | | ???????????#" """ ## #???????????????????????? | | ????"""????##o ## #???????????????????????? | | ????"""?????# ## #???????????????????????? | | ????"""?????# ## #???????????????????????? | | ????????????#"%+###### #???????????????????????? | | ????"""???? !%*???? #???????????????????????? | | ????"""?? !|##???# #???????????????????????? | | ????"""?+ ### #????# ????????????????????????? | | ????????# ??" #????????????????????????????????? | | ????????# ???" #????????????????????????????????? | | ???????? ???## #????????????????????????????????? | | ??????? ????# #????????????????????????????????? | | ???????#?????% ????????????????????????????????? | | ????????????? %????????????????????????????????? | | ????????????? ????????????????????????????????? | | ?????????????% %%????????????????????????????????? | | ?????????????#####????????????????